[Event "Masters Tournament (MTO)"]
[Site "Biel, Switzerland"]
[Date "2026.07.14"]
[Round "2.21"]
[White "Nguyen, Thi Mai Hung"]
[Black "Damen, Josephine"]
[Result "1-0"]
[TimeControl "100+30+30sec/move"]
[WhiteTitle "-"]
[BlackTitle "-"]
[WhiteFideId "12401676"]
[BlackFideId "1074369"]
[WhiteElo "2260"]
[BlackElo "1971"]

1. d4 {[%clk 01:39:54]} {[%emt 00:01:05]} Nf6 {[%clk 01:40:54]} {[%emt
00:00:06]} 2. Nf3 {[%clk 01:39:28]} {[%emt 00:00:56]} g6 {[%clk 01:41:19]}
{[%emt 00:00:05]} 3. Bg5 {[%clk 01:37:10]} {[%emt 00:02:48]} Bg7 {[%clk
01:41:43]} {[%emt 00:00:06]} 4. Nbd2 {[%clk 01:37:02]} {[%emt 00:00:38]} d6
{[%clk 01:42:04]} {[%emt 00:00:09]} 5. c3 {[%clk 01:36:37]} {[%emt 00:00:56]}
O-O {[%clk 01:42:16]} {[%emt 00:00:17]} 6. e4 {[%clk 01:36:58]} {[%emt
00:00:10]} h6 {[%clk 01:41:54]} {[%emt 00:00:51]} 7. Bh4 {[%clk 01:36:44]}
{[%emt 00:00:44]} Nbd7 {[%clk 01:41:37]} {[%emt 00:00:47]} 8. Bd3 {[%clk
01:30:15]} {[%emt 00:07:00]} e5 {[%clk 01:36:09]} {[%emt 00:05:58]} 9. O-O
{[%clk 01:28:54]} {[%emt 00:01:52]} g5 {[%clk 01:31:55]} {[%emt 00:04:43]} 10.
Bg3 {[%clk 01:28:09]} {[%emt 00:01:16]} Nh5 {[%clk 01:31:06]} {[%emt 00:01:19]}
11. dxe5 {[%clk 01:26:23]} {[%emt 00:02:16]} dxe5 {[%clk 01:29:06]} {[%emt
00:02:30]} 12. Nc4 {[%clk 01:25:58]} {[%emt 00:00:55]} Nf4 {[%clk 01:23:14]}
{[%emt 00:06:22]} 13. Bc2 {[%clk 01:21:44]} {[%emt 00:04:45]} Qe7 {[%clk
01:17:51]} {[%emt 00:05:51]} 14. Qd2 {[%clk 01:12:24]} {[%emt 00:09:51]} Nb6
{[%clk 00:58:38]} {[%emt 00:19:42]} 15. Ne3 {[%clk 01:01:40]} {[%emt 00:11:15]}
Be6 {[%clk 00:50:01]} {[%emt 00:09:07]} 16. Bb3 {[%clk 01:00:38]} {[%emt
00:01:31]} a5 {[%clk 00:39:02]} {[%emt 00:11:29]} 17. h4 {[%clk 00:50:10]}
{[%emt 00:10:59]} Rfd8 {[%clk 00:30:36]} {[%emt 00:08:55]} 18. Qc2 {[%clk
00:50:03]} {[%emt 00:00:38]} Bd7 {[%clk 00:30:27]} {[%emt 00:00:39]} 19. hxg5
{[%clk 00:42:55]} {[%emt 00:07:38]} hxg5 {[%clk 00:21:59]} {[%emt 00:08:58]} 20.
a3 {[%clk 00:41:55]} {[%emt 00:01:30]} Bb5 {[%clk 00:16:26]} {[%emt 00:06:03]}
21. c4 {[%clk 00:40:11]} {[%emt 00:03:55]} Bc6 {[%clk 00:16:39]} 22. Rad1
{[%clk 00:33:09]} {[%emt 00:06:08]} Bd7 {[%clk 00:06:40]} {[%emt 00:10:29]} 23.
c5 {[%clk 00:29:26]} {[%emt 00:04:13]} Nc8 {[%clk 00:06:25]} {[%emt 00:00:45]}
24. Bxf4 {[%clk 00:28:23]} {[%emt 00:01:33]} exf4 {[%clk 00:02:54]} {[%emt
00:04:00]} 25. Nd5 {[%clk 00:28:37]} {[%emt 00:00:16]} Qf8 {[%clk 00:03:18]}
{[%emt 00:00:06]} 26. Nxc7 {[%clk 00:27:08]} {[%emt 00:01:59]} g4 {[%clk
00:03:14]} {[%emt 00:00:34]} 27. Ng5 {[%clk 00:25:59]} {[%emt 00:01:40]} Qe7
{[%clk 00:00:59]} {[%emt 00:02:45]} 28. Nxf7 {[%clk 00:25:00]} {[%emt
00:01:28]} Qh4 {[%clk 00:01:20]} {[%emt 00:00:09]} 29. Nxd8+ {[%clk 00:23:08]}
{[%emt 00:02:23]} Kh8 {[%clk 00:01:46]} {[%emt 00:00:03]} 30. Nf7+ {[%clk
00:21:29]} {[%emt 00:02:09]} 1-0

[Event "Masters Tournament (MTO)"]
[Site "Biel, Switzerland"]
[Date "2026.07.14"]
[Round "2.22"]
[White "Joly, Julien"]
[Black "Aryan, Mehta"]
[Result "1/2-1/2"]
[TimeControl "100+30+30sec/move"]
[WhiteTitle "-"]
[BlackTitle "-"]
[WhiteFideId "26082284"]
[BlackFideId "33329664"]
[WhiteElo "2257"]
[BlackElo "1979"]

1. d4 {[%clk 01:40:55]} {[%emt 00:00:02]} Nf6 {[%clk 01:40:39]} {[%emt
00:00:21]} 2. Nc3 {[%clk 01:40:48]} {[%emt 00:00:39]} d5 {[%clk 01:40:57]}
{[%emt 00:00:12]} 3. Bf4 {[%clk 01:41:05]} {[%emt 00:00:12]} g6 {[%clk
01:39:53]} {[%emt 00:01:34]} 4. e3 {[%clk 01:41:26]} {[%emt 00:00:09]} Bg7
{[%clk 01:40:15]} {[%emt 00:00:08]} 5. h4 {[%clk 01:41:47]} {[%emt 00:00:08]}
O-O {[%clk 01:40:02]} {[%emt 00:00:44]} 6. h5 {[%clk 01:40:27]} {[%emt
00:01:50]} c5 {[%clk 01:40:10]} {[%emt 00:00:22]} 7. hxg6 {[%clk 01:35:19]}
{[%emt 00:05:39]} hxg6 {[%clk 01:37:27]} {[%emt 00:03:13]} 8. dxc5 {[%clk
01:31:22]} {[%emt 00:04:27]} Qa5 {[%clk 01:36:40]} {[%emt 00:01:18]} 9. Qd2
{[%clk 01:30:48]} {[%emt 00:01:04]} Qxc5 {[%clk 01:35:49]} {[%emt 00:01:22]} 10.
Bh6 {[%clk 01:09:19]} {[%emt 00:21:57]} Bxh6 {[%clk 01:14:42]} {[%emt
00:21:38]} 11. Rxh6 {[%clk 01:09:29]} {[%emt 00:00:20]} Nc6 {[%clk 01:09:50]}
{[%emt 00:05:22]} 12. O-O-O {[%clk 01:04:42]} {[%emt 00:05:15]} Bf5 {[%clk
00:59:55]} {[%emt 00:10:26]} 13. Nf3 {[%clk 00:49:49]} {[%emt 00:15:24]} Kg7
{[%clk 00:56:48]} {[%emt 00:03:36]} 14. Rh4 {[%clk 00:48:36]} {[%emt 00:01:43]}
Rh8 {[%clk 00:55:09]} {[%emt 00:02:09]} 15. Rxh8 {[%clk 00:42:18]} Rxh8 {[%clk
00:55:08]} {[%emt 00:07:20]} 16. Nd4 {[%clk 00:42:39]} {[%emt 00:00:08]} Nxd4
{[%clk 00:52:44]} {[%emt 00:02:54]} 17. exd4 {[%clk 00:41:03]} {[%emt
00:02:06]} Qd6 {[%clk 00:49:51]} {[%emt 00:03:23]} 18. f3 {[%clk 00:40:45]}
{[%emt 00:00:48]} Rh2 {[%clk 00:39:07]} {[%emt 00:11:14]} 19. Qe3 {[%clk
00:37:16]} {[%emt 00:04:00]} Nh5 {[%clk 00:33:42]} {[%emt 00:05:54]} 20. Ne2
{[%clk 00:36:54]} {[%emt 00:00:52]} Be6 {[%clk 00:29:13]} {[%emt 00:05:00]} 21.
Qg5 {[%clk 00:17:59]} {[%emt 00:19:25]} Nf6 {[%clk 00:24:40]} {[%emt 00:05:03]}
22. a3 {[%clk 00:12:00]} {[%emt 00:06:29]} a6 {[%clk 00:23:07]} {[%emt
00:02:04]} 23. Kb1 {[%clk 00:09:00]} {[%emt 00:03:29]} b5 {[%clk 00:22:45]}
{[%emt 00:00:51]} 24. Qf4 {[%clk 00:07:41]} {[%emt 00:01:49]} Qxf4 {[%clk
00:22:50]} {[%emt 00:00:26]} 25. Nxf4 {[%clk 00:08:09]} {[%emt 00:00:01]} Bf5
{[%clk 00:22:31]} {[%emt 00:00:49]} 26. Kc1 {[%clk 00:06:57]} {[%emt 00:01:43]}
g5 {[%clk 00:21:47]} {[%emt 00:01:14]} 27. Ne2 {[%clk 00:05:02]} {[%emt
00:02:25]} g4 {[%clk 00:19:07]} {[%emt 00:03:10]} 28. Kd2 {[%clk 00:04:58]}
{[%emt 00:00:34]} gxf3 {[%clk 00:18:02]} {[%emt 00:01:35]} 29. gxf3 {[%clk
00:05:27]} {[%emt 00:00:01]} Nh7 {[%clk 00:09:56]} {[%emt 00:08:36]} 30. c3
{[%clk 00:04:42]} {[%emt 00:01:15]} Ng5 {[%clk 00:09:31]} {[%emt 00:00:54]} 31.
Ke3 {[%clk 00:05:03]} {[%emt 00:00:10]} Kf6 {[%clk 00:09:39]} {[%emt 00:00:22]}
32. Ra1 {[%clk 00:04:09]} {[%emt 00:01:24]} Bc2 {[%clk 00:07:43]} {[%emt
00:02:25]} 33. Nf4 {[%clk 00:03:31]} {[%emt 00:01:08]} Bb3 {[%clk 00:06:29]}
{[%emt 00:01:44]} 34. Bg2 {[%clk 00:01:48]} {[%emt 00:02:14]} Ne6 {[%emt
00:00:53]} 35. Rh1 {[%clk 00:02:16]} Rxh1 {[%clk 00:06:05]} {[%emt 00:00:32]}
36. Bxh1 {[%clk 00:02:46]} Nxf4 {[%clk 00:06:15]} {[%emt 00:00:20]} 37. Kxf4
{[%clk 00:03:15]} Bc4 {[%clk 00:05:50]} {[%emt 00:00:55]} 38. b4 {[%clk
00:01:58]} {[%emt 00:01:47]} Bf1 {[%clk 00:04:06]} {[%emt 00:02:14]} 39. Ke3
{[%clk 00:02:27]} {[%emt 00:00:01]} e6 {[%clk 00:03:41]} {[%emt 00:00:55]} 40.
Kf4 {[%clk 00:02:30]} {[%emt 00:00:28]} Bh3 {[%clk 00:03:22]} {[%emt 00:00:48]}
41. Kg3 {[%clk 00:29:36]} {[%emt 00:03:23]} Bf1 {[%clk 00:33:25]} {[%emt
00:00:27]} 42. Kg4 {[%clk 00:29:52]} {[%emt 00:00:14]} Kg6 {[%clk 00:33:02]}
{[%emt 00:00:54]} 43. Kf4 {[%clk 00:26:48]} {[%emt 00:03:34]} Kf6 {[%clk
00:32:27]} {[%emt 00:01:05]} 44. Ke3 {[%clk 00:27:13]} {[%emt 00:00:05]} Bh3
{[%clk 00:31:40]} {[%emt 00:01:17]} 45. f4 {[%clk 00:27:42]} Bf1 {[%clk
00:31:01]} {[%emt 00:01:09]} 46. Bf3 {[%clk 00:27:32]} {[%emt 00:00:39]} Kg6
{[%clk 00:30:30]} {[%emt 00:01:01]} 47. Bd1 {[%clk 00:27:28]} {[%emt 00:00:34]}
Kf5 {[%clk 00:28:48]} {[%emt 00:02:06]} 48. Bc2+ {[%clk 00:26:24]} {[%emt
00:01:40]} Kf6 {[%clk 00:29:09]} {[%emt 00:00:10]} 49. Kf3 {[%clk 00:24:14]}
{[%emt 00:02:39]} Bh3 {[%clk 00:23:19]} {[%emt 00:06:19]} 50. a4 {[%clk
00:19:47]} {[%emt 00:04:59]} Bf5 {[%clk 00:23:00]} {[%emt 00:00:48]} 51. Bd1
{[%clk 00:19:34]} {[%emt 00:00:42]} Bd3 {[%clk 00:21:17]} {[%emt 00:02:14]} 52.
Ke3 {[%clk 00:18:44]} {[%emt 00:01:20]} Bf1 {[%clk 00:20:39]} {[%emt 00:01:05]}
53. a5 {[%clk 00:18:47]} {[%emt 00:00:30]} Bc4 {[%clk 00:18:26]} {[%emt
00:02:43]} 54. Bc2 {[%clk 00:18:49]} {[%emt 00:00:28]} Bf1 {[%clk 00:18:07]}
{[%emt 00:00:50]} 55. Bd1 {[%clk 00:15:35]} {[%emt 00:03:44]} Kf5 {[%clk
00:17:38]} {[%emt 00:00:59]} 56. Bh5 {[%clk 00:15:35]} {[%emt 00:00:29]} Kf6
{[%clk 00:17:53]} {[%emt 00:00:15]} 57. Bg4 {[%clk 00:10:06]} {[%emt 00:05:59]}
Kg6 {[%clk 00:17:29]} {[%emt 00:00:55]} 58. f5+ {[%clk 00:02:50]} {[%emt
00:07:46]} exf5 {[%clk 00:17:27]} {[%emt 00:00:31]} 59. Bf3 {[%clk 00:03:16]}
{[%emt 00:00:04]} Bc4 {[%clk 00:17:25]} {[%emt 00:00:32]} 60. Kf4 {[%clk
00:03:45]} {[%emt 00:00:01]} Kf6 {[%clk 00:15:17]} {[%emt 00:02:38]} 61. Bg2
{[%clk 00:02:24]} {[%emt 00:01:51]} Ke6 {[%clk 00:15:29]} {[%emt 00:00:19]} 62.
Bh3 {[%clk 00:02:15]} {[%emt 00:00:39]} Bd3 {[%clk 00:15:54]} {[%emt 00:00:05]}
63. Kg5 {[%clk 00:02:18]} {[%emt 00:00:26]} f6+ {[%clk 00:10:23]} {[%emt
00:06:02]} 64. Kf4 {[%clk 00:02:37]} {[%emt 00:00:10]} Be4 {[%clk 00:10:42]}
{[%emt 00:00:11]} 65. Bf1 {[%clk 00:02:55]} {[%emt 00:00:12]} Kd6 {[%clk
00:11:06]} {[%emt 00:00:07]} 66. Be2 {[%clk 00:03:06]} {[%emt 00:00:18]} Bc2
{[%clk 00:10:59]} {[%emt 00:00:38]} 67. Bh5 {[%clk 00:02:48]} {[%emt 00:00:48]}
Ke7 {[%clk 00:10:33]} {[%emt 00:00:55]} 68. Ke3 {[%clk 00:01:52]} {[%emt
00:01:27]} Be4 {[%clk 00:10:44]} {[%emt 00:00:18]} 69. Kf4 {[%clk 00:02:05]}
{[%emt 00:00:17]} Bc2 {[%clk 00:11:13]} {[%emt 00:00:02]} 70. Bg6 {[%clk
00:02:18]} {[%emt 00:00:16]} Be4 {[%clk 00:11:11]} {[%emt 00:00:32]} 71. Bh5
{[%clk 00:01:33]} {[%emt 00:01:15]} 1/2-1/2

[Event "Masters Tournament (MTO)"]
[Site "Biel, Switzerland"]
[Date "2026.07.14"]
[Round "2.23"]
[White "Scherler, Julius"]
[Black "Gireada, Daniel"]
[Result "0-1"]
[TimeControl "100+30+30sec/move"]
[WhiteTitle "-"]
[BlackTitle "-"]
[WhiteFideId "1337947"]
[BlackFideId "1206451"]
[WhiteElo "1941"]
[BlackElo "2255"]

1. e4 {[%clk 01:40:50]} {[%emt 00:00:07]} c6 {[%clk 01:40:49]} {[%emt
00:00:15]} 2. Nf3 {[%clk 01:40:59]} {[%emt 00:00:17]} d5 {[%clk 01:41:03]}
{[%emt 00:00:17]} 3. d3 {[%clk 01:41:16]} {[%emt 00:00:13]} Bg4 {[%clk
01:41:11]} {[%emt 00:00:22]} 4. Be2 {[%clk 01:40:48]} {[%emt 00:00:58]} e6
{[%clk 01:40:47]} {[%emt 00:00:55]} 5. O-O {[%clk 01:31:03]} {[%emt 00:10:16]}
Nf6 {[%clk 01:41:07]} {[%emt 00:00:10]} 6. Nfd2 {[%clk 01:25:47]} {[%emt
00:05:46]} Bxe2 {[%clk 01:37:27]} {[%emt 00:04:10]} 7. Qxe2 {[%clk 01:26:15]}
{[%emt 00:00:02]} d4 {[%clk 01:37:05]} {[%emt 00:00:52]} 8. e5 {[%clk
01:20:50]} {[%emt 00:05:55]} Nd5 {[%clk 01:36:51]} {[%emt 00:00:44]} 9. a4
{[%clk 01:03:36]} {[%emt 00:17:44]} Nd7 {[%clk 01:31:50]} {[%emt 00:05:31]} 10.
Re1 {[%clk 00:53:43]} {[%emt 00:10:24]} Qc7 {[%clk 01:25:25]} {[%emt 00:06:55]}
11. Na3 {[%clk 00:51:14]} {[%emt 00:02:58]} a6 {[%clk 01:24:39]} {[%emt
00:01:16]} 12. Qg4 {[%clk 00:42:51]} {[%emt 00:08:52]} Nxe5 {[%clk 01:19:21]}
{[%emt 00:05:49]} 13. Qg3 {[%clk 00:35:06]} {[%emt 00:08:15]} Ng6 {[%clk
01:17:28]} {[%emt 00:02:23]} 14. Qg4 {[%clk 00:29:46]} {[%emt 00:05:49]} c5
{[%clk 01:03:02]} {[%emt 00:14:57]} 15. Nf3 {[%clk 00:29:17]} {[%emt 00:00:59]}
Nf6 {[%clk 01:00:37]} {[%emt 00:02:55]} 16. Qh3 {[%clk 00:28:47]} {[%emt
00:00:59]} Be7 {[%clk 00:56:49]} {[%emt 00:04:19]} 17. Nc4 {[%clk 00:28:26]}
{[%emt 00:00:51]} O-O {[%clk 00:51:20]} {[%emt 00:05:58]} 18. a5 {[%clk
00:28:24]} {[%emt 00:00:33]} Rad8 {[%clk 00:50:04]} {[%emt 00:01:46]} 19. Ng5
{[%clk 00:25:36]} {[%emt 00:03:17]} h6 {[%clk 00:43:51]} {[%emt 00:06:44]} 20.
Ne4 {[%clk 00:23:06]} {[%emt 00:03:01]} Nxe4 {[%clk 00:40:41]} {[%emt
00:03:39]} 21. Rxe4 {[%clk 00:23:18]} {[%emt 00:00:18]} Kh7 {[%clk 00:38:25]}
{[%emt 00:02:47]} 22. Bd2 {[%clk 00:21:14]} {[%emt 00:02:33]} Rd5 {[%clk
00:34:39]} {[%emt 00:04:16]} 23. Nb6 {[%clk 00:19:23]} {[%emt 00:02:21]} Re5
{[%clk 00:30:12]} {[%emt 00:04:58]} 24. Rxe5 {[%clk 00:12:22]} {[%emt
00:07:30]} Nxe5 {[%clk 00:28:13]} {[%emt 00:02:29]} 25. Bf4 {[%clk 00:08:55]}
{[%emt 00:03:57]} Bd6 {[%clk 00:27:46]} {[%emt 00:00:57]} 26. Bxe5 {[%clk
00:07:07]} {[%emt 00:02:18]} Bxe5 {[%clk 00:28:08]} {[%emt 00:00:08]} 27. Re1
{[%clk 00:06:51]} {[%emt 00:00:46]} Bd6 {[%clk 00:28:20]} {[%emt 00:00:19]} 28.
Qh4 {[%clk 00:05:45]} {[%emt 00:01:35]} Qc6 {[%clk 00:25:44]} {[%emt 00:03:07]}
29. Nc4 {[%clk 00:04:25]} {[%emt 00:01:49]} Re8 {[%clk 00:24:48]} {[%emt
00:01:25]} 30. b3 {[%clk 00:04:00]} {[%emt 00:00:57]} Bc7 {[%clk 00:24:29]}
{[%emt 00:00:49]} 31. h3 {[%clk 00:02:17]} {[%emt 00:02:13]} Kg8 {[%clk
00:24:01]} {[%emt 00:00:57]} 32. Re4 {[%clk 00:02:04]} {[%emt 00:00:43]} f5
{[%clk 00:21:53]} {[%emt 00:02:38]} 33. Re1 {[%clk 00:01:52]} {[%emt 00:00:42]}
e5 {[%clk 00:21:28]} {[%emt 00:00:56]} 34. Qh5 {[%clk 00:00:53]} {[%emt
00:01:29]} Qd7 {[%clk 00:18:01]} {[%emt 00:03:57]} 35. f4 {[%clk 00:00:36]}
{[%emt 00:00:47]} e4 {[%clk 00:17:27]} {[%emt 00:01:04]} 36. dxe4 {[%clk
00:00:39]} {[%emt 00:00:27]} Rxe4 {[%clk 00:16:37]} {[%emt 00:01:20]} 37. Rxe4
{[%clk 00:00:43]} {[%emt 00:00:27]} fxe4 {[%clk 00:17:04]} {[%emt 00:00:01]} 38.
Qxc5 {[%clk 00:00:31]} {[%emt 00:00:43]} Bxf4 {[%clk 00:17:22]} {[%emt
00:00:11]} 39. Ne5 {[%clk 00:00:35]} {[%emt 00:00:26]} Be3+ {[%clk 00:16:04]}
{[%emt 00:01:48]} 40. Kh1 {[%clk 00:00:37]} {[%emt 00:00:28]} Qf5 {[%clk
00:16:13]} {[%emt 00:00:20]} 41. Qc4+ {[%clk 00:25:48]} {[%emt 00:05:20]} Kh7
{[%clk 00:43:02]} {[%emt 00:03:41]} 42. Ng4 {[%clk 00:24:38]} {[%emt 00:01:40]}
Bf2 {[%clk 00:15:44]} {[%emt 00:27:48]} 43. Nxf2 {[%clk 00:17:44]} {[%emt
00:07:24]} Qxf2 {[%clk 00:16:03]} {[%emt 00:00:10]} 44. Qd5 {[%clk 00:12:54]}
{[%emt 00:05:21]} Qf1+ {[%clk 00:14:20]} {[%emt 00:02:13]} 45. Kh2 {[%clk
00:13:20]} {[%emt 00:00:05]} Qf4+ {[%clk 00:14:39]} {[%emt 00:00:11]} 46. g3
{[%clk 00:10:47]} {[%emt 00:03:02]} Qf2+ {[%clk 00:11:38]} {[%emt 00:03:32]} 47.
Kh1 {[%clk 00:11:13]} {[%emt 00:00:04]} e3 {[%clk 00:07:21]} {[%emt 00:04:47]}
48. Qe4+ {[%clk 00:09:43]} {[%emt 00:02:00]} Kg8 {[%clk 00:06:30]} {[%emt
00:01:20]} 49. Qe8+ {[%clk 00:05:21]} {[%emt 00:04:52]} Qf8 {[%clk 00:06:06]}
{[%emt 00:00:54]} 50. Qe4 {[%clk 00:05:07]} {[%emt 00:00:44]} Kh8 {[%clk
00:02:23]} {[%emt 00:04:13]} 51. Kg2 {[%clk 00:03:55]} {[%emt 00:01:43]} Qf6
{[%clk 00:01:46]} {[%emt 00:01:07]} 52. Qe8+ {[%clk 00:02:31]} {[%emt
00:01:54]} Kh7 {[%clk 00:02:10]} {[%emt 00:00:06]} 53. Qe4+ {[%clk 00:02:58]}
{[%emt 00:00:03]} Qg6 {[%clk 00:02:37]} {[%emt 00:00:03]} 54. Qxd4 {[%clk
00:02:09]} {[%emt 00:01:18]} Qxc2+ {[%clk 00:03:00]} {[%emt 00:00:07]} 55. Kf3
{[%clk 00:02:26]} {[%emt 00:00:12]} Qf2+ {[%clk 00:01:25]} {[%emt 00:02:07]} 56.
Kg4 {[%clk 00:02:54]} {[%emt 00:00:01]} h5+ {[%clk 00:01:38]} {[%emt 00:00:17]}
57. Kxh5 {[%clk 00:02:33]} {[%emt 00:00:51]} Qf5+ {[%clk 00:01:46]} {[%emt
00:00:23]} 58. Kh4 {[%clk 00:03:01]} {[%emt 00:00:02]} g5+ {[%clk 00:02:06]}
{[%emt 00:00:10]} 59. Kh5 {[%clk 00:03:28]} {[%emt 00:00:03]} g4+ {[%clk
00:02:35]} {[%emt 00:00:02]} 60. Kh4 {[%clk 00:03:50]} {[%emt 00:00:07]} e2
{[%clk 00:02:32]} {[%emt 00:00:32]} 61. Qe3 {[%clk 00:01:22]} {[%emt 00:02:58]}
Kg6 {[%clk 00:00:52]} {[%emt 00:02:11]} 62. hxg4 {[%clk 00:00:32]} {[%emt
00:01:20]} Qf6+ {[%clk 00:00:49]} {[%emt 00:00:33]} 63. g5 {[%clk 00:00:56]}
{[%emt 00:00:06]} Qh8+ {[%clk 00:01:17]} {[%emt 00:00:02]} 64. Kg4 {[%clk
00:01:19]} {[%emt 00:00:06]} Qh5+ {[%emt 00:00:48]} 0-1

[Event "Masters Tournament (MTO)"]
[Site "Biel, Switzerland"]
[Date "2026.07.14"]
[Round "2.24"]
[White "Schnell, Simon"]
[Black "Carey, Michael"]
[Result "1-0"]
[TimeControl "100+30+30sec/move"]
[WhiteTitle "-"]
[BlackTitle "-"]
[WhiteFideId "1345311"]
[BlackFideId "30923760"]
[WhiteElo "2211"]
[BlackElo "1946"]

1. d4 {[%clk 01:40:49]} {[%emt 00:00:10]} Nf6 {[%clk 01:40:53]} {[%emt
00:00:07]} 2. c4 {[%clk 01:41:15]} {[%emt 00:00:05]} c5 {[%clk 01:41:07]}
{[%emt 00:00:15]} 3. d5 {[%clk 01:41:38]} {[%emt 00:00:07]} b5 {[%clk
01:41:31]} {[%emt 00:00:06]} 4. cxb5 {[%clk 01:42:00]} {[%emt 00:00:08]} a6
{[%clk 01:41:55]} {[%emt 00:00:05]} 5. bxa6 {[%clk 01:42:24]} {[%emt 00:00:07]}
Bxa6 {[%clk 01:42:18]} {[%emt 00:00:07]} 6. Nc3 {[%clk 01:42:11]} {[%emt
00:00:43]} d6 {[%clk 01:42:43]} {[%emt 00:00:05]} 7. e4 {[%clk 01:42:03]}
{[%emt 00:00:39]} Bxf1 {[%clk 01:43:07]} {[%emt 00:00:06]} 8. Kxf1 {[%clk
01:42:29]} {[%emt 00:00:03]} g6 {[%clk 01:43:30]} {[%emt 00:00:08]} 9. Nf3
{[%clk 01:42:51]} {[%emt 00:00:06]} Bg7 {[%clk 01:42:53]} {[%emt 00:01:09]} 10.
g3 {[%clk 01:43:14]} {[%emt 00:00:06]} O-O {[%clk 01:43:17]} {[%emt 00:00:07]}
11. Kg2 {[%clk 01:43:42]} {[%emt 00:00:02]} Qb6 {[%clk 01:43:41]} {[%emt
00:00:06]} 12. a4 {[%clk 01:39:57]} {[%emt 00:04:15]} Na6 {[%clk 01:43:28]}
{[%emt 00:00:43]} 13. Ra3 {[%clk 01:35:42]} {[%emt 00:04:47]} Rfb8 {[%clk
01:41:40]} {[%emt 00:02:17]} 14. Re1 {[%clk 01:29:32]} {[%emt 00:06:40]} Nc7
{[%clk 01:40:07]} {[%emt 00:02:03]} 15. Re2 {[%clk 01:15:36]} {[%emt 00:14:26]}
Nd7 {[%clk 01:36:47]} {[%emt 00:03:51]} 16. Bf4 {[%clk 01:10:27]} {[%emt
00:05:38]} Qb7 {[%clk 01:32:43]} {[%emt 00:04:34]} 17. h4 {[%clk 01:02:54]}
{[%emt 00:08:03]} h6 {[%clk 01:31:46]} {[%emt 00:01:27]} 18. Qd3 {[%clk
00:57:37]} {[%emt 00:05:48]} Qa6 {[%clk 01:30:43]} {[%emt 00:01:32]} 19. Qe3
{[%clk 00:53:09]} {[%emt 00:04:59]} Kh7 {[%clk 01:27:44]} {[%emt 00:03:28]} 20.
e5 {[%clk 00:43:08]} {[%emt 00:10:31]} Nb6 {[%clk 01:11:03]} {[%emt 00:17:11]}
21. Qe4 {[%clk 00:29:58]} {[%emt 00:13:40]} Nc4 {[%clk 00:47:10]} {[%emt
00:24:23]} 22. Ra2 {[%clk 00:28:45]} {[%emt 00:01:43]} Rb7 {[%clk 00:30:00]}
{[%emt 00:20:04]} 23. h5 {[%clk 00:26:34]} {[%emt 00:00:18]} Nxe5 {[%clk
00:22:07]} {[%emt 00:08:22]} 24. Nxe5 {[%clk 00:26:36]} {[%emt 00:00:29]} dxe5
{[%clk 00:20:13]} {[%emt 00:02:23]} 25. Bxe5 {[%clk 00:25:49]} {[%emt
00:01:17]} Ne8 {[%clk 00:18:01]} {[%emt 00:02:42]} 26. hxg6+ {[%clk 00:24:35]}
{[%emt 00:01:45]} Qxg6 {[%clk 00:17:35]} {[%emt 00:00:56]} 27. Bxg7 {[%clk
00:24:50]} {[%emt 00:00:13]} Kxg7 {[%clk 00:17:01]} {[%emt 00:01:05]} 28. Qxg6+
{[%clk 00:17:44]} {[%emt 00:07:36]} Kxg6 {[%clk 00:17:29]} {[%emt 00:00:02]} 29.
Ne4 {[%clk 00:17:56]} {[%emt 00:00:18]} c4 {[%clk 00:15:33]} {[%emt 00:02:27]}
30. Rc2 {[%clk 00:17:10]} {[%emt 00:01:16]} Rb4 {[%clk 00:15:25]} {[%emt
00:00:38]} 31. a5 {[%clk 00:15:47]} {[%emt 00:01:52]} Kf5 {[%clk 00:11:11]}
{[%emt 00:04:44]} 32. Nc3 {[%clk 00:12:48]} {[%emt 00:03:29]} Nc7 {[%clk
00:08:48]} {[%emt 00:02:54]} 33. Re2 {[%clk 00:11:47]} {[%emt 00:01:30]} Kf6
{[%clk 00:07:37]} {[%emt 00:01:41]} 34. Ra1 {[%clk 00:10:40]} {[%emt 00:01:37]}
Rab8 {[%clk 00:03:54]} {[%emt 00:04:14]} 35. Re4 {[%clk 00:07:21]} {[%emt
00:03:48]} Na6 {[%clk 00:03:09]} {[%emt 00:01:16]} 36. Rae1 {[%clk 00:06:49]}
{[%emt 00:01:01]} R8b7 {[%clk 00:02:43]} {[%emt 00:00:56]} 37. Rf4+ {[%clk
00:05:15]} {[%emt 00:02:03]} Kg7 {[%clk 00:03:00]} {[%emt 00:00:14]} 38. Rg4+
{[%clk 00:04:12]} {[%emt 00:01:33]} Kf8 {[%clk 00:02:23]} {[%emt 00:01:07]} 39.
Rh1 {[%clk 00:00:38]} {[%emt 00:04:04]} Ke8 {[%clk 00:01:26]} {[%emt 00:01:28]}
40. Rxh6 {[%clk 00:00:42]} {[%emt 00:00:26]} Nc5 {[%clk 00:00:53]} {[%emt
00:01:03]} 41. Rc6 {[%clk 00:27:34]} {[%emt 00:03:38]} Nd3 {[%clk 00:28:28]}
{[%emt 00:02:55]} 42. Rgxc4 {[%clk 00:20:04]} {[%emt 00:07:59]} Rxb2 {[%clk
00:27:15]} {[%emt 00:01:43]} 43. Rc8+ {[%clk 00:19:39]} {[%emt 00:00:56]} Kd7
{[%clk 00:27:36]} {[%emt 00:00:09]} 44. Ne4 {[%clk 00:19:44]} {[%emt 00:00:24]}
f5 {[%clk 00:26:50]} {[%emt 00:01:16]} 45. Nc5+ {[%clk 00:18:48]} {[%emt
00:01:26]} Nxc5 {[%clk 00:25:58]} {[%emt 00:01:23]} 46. R8xc5 {[%clk 00:19:07]}
{[%emt 00:00:11]} Ra2 {[%clk 00:24:26]} {[%emt 00:02:01]} 47. d6 {[%clk
00:18:36]} {[%emt 00:01:01]} Kxd6 {[%clk 00:22:50]} {[%emt 00:02:06]} 48. Rxf5
{[%clk 00:18:56]} {[%emt 00:00:10]} e5 {[%clk 00:20:06]} {[%emt 00:03:14]} 49.
Rh4 {[%clk 00:18:38]} {[%emt 00:00:48]} Rxa5 {[%clk 00:18:30]} {[%emt
00:02:06]} 50. Rh6+ {[%clk 00:19:03]} {[%emt 00:00:05]} Kd5 {[%clk 00:18:40]}
{[%emt 00:00:21]} 51. Rxe5+ {[%clk 00:19:22]} {[%emt 00:00:10]} 1-0